bitfinex-derivatives/quotes_BTCF0:USTF0_20250710
["timestamp","ask_amount","ask_price","bid_price","bid_amount"]
[1752177555966,1.78118638,113430.0,113420.0,0.28222713]
[1752177556158,1.16966638,113430.0,113420.0,0.28222713]
[1752177556361,1.16966638,113430.0,113420.0,0.10601573]
[1752177556362,1.78130638,113430.0,113420.0,0.10601573]
[1752177557766,1.78130638,113430.0,113420.0,0.07436]
[1752177558063,1.78330638,113430.0,113420.0,0.07336]
[1752177558463,1.78230638,113430.0,113420.0,0.07336]
[1752177558662,1.78230638,113430.0,113420.0,0.07436]
[1752177558863,1.16966638,113430.0,113420.0,0.07436]
[1752177559066,1.78118638,113430.0,113420.0,0.07436]
[1752177559470,1.2525358,113430.0,113420.0,0.2505713]
[1752177559668,1.51680109,113430.0,113420.0,0.2505713]
[1752177560473,1.15600109,113430.0,113420.0,0.2505713]
[1752177560677,0.03884,113430.0,113420.0,0.64307825]
[1752177560972,0.04055,113450.0,113440.0,0.1924803]
[1752177561166,0.48162009,113450.0,113440.0,0.24096637]
[1752177561368,1.09426009,113450.0,113440.0,0.30336637]
[1752177561568,1.09362009,113450.0,113440.0,0.30336637]
[1752177561770,0.48162009,113450.0,113440.0,0.12718607]
[1752177561971,1.10263,113450.0,113440.0,0.09638607]
[1752177562175,1.10263,113450.0,113440.0,0.27256637]
[1752177562176,1.12720009,113450.0,113440.0,0.27256637]
[1752177562670,1.12720009,113450.0,113440.0,0.30426779]
[1752177563276,1.12720009,113450.0,113440.0,0.27256637]
[1752177563877,1.12520009,113450.0,113440.0,0.27256637]
[1752177564377,1.12548009,113450.0,113440.0,0.27256637]
[1752177564680,1.12548009,113450.0,113440.0,0.09638607]
[1752177565077,0.51312009,113450.0,113440.0,0.09638607]
[1752177565271,1.12584009,113450.0,113440.0,0.09638607]
[1752177565471,1.12580009,113450.0,113440.0,0.27256637]
[1752177565874,1.12780009,113450.0,113440.0,0.27256637]
[1752177566273,0.04419,113450.0,113440.0,1.77003701]
[1752177566476,0.1957048,113450.0,113440.0,2.16333701]
[1752177566780,0.2187148,113450.0,113440.0,1.89907172]
[1752177566978,0.48298009,113450.0,113440.0,1.89907172]
[1752177567177,0.48362009,113450.0,113440.0,1.89907172]
[1752177567377,0.2173548,113450.0,113440.0,1.89907172]
[1752177567583,0.48098009,113450.0,113440.0,1.89907172]
[1752177567985,0.48162009,113450.0,113440.0,1.89907172]
[1752177568283,0.48162009,113450.0,113440.0,0.33673237]
[1752177568482,0.48162009,113450.0,113440.0,0.27253095]
[1752177568785,0.51252009,113450.0,113440.0,0.27253095]
[1752177569087,0.51252009,113450.0,113440.0,0.09635065]
[1752177569578,0.51252009,113450.0,113440.0,0.27253095]
[1752177570178,0.87332009,113450.0,113440.0,0.27253095]
[1752177571384,0.51252009,113450.0,113440.0,0.27253095]
[1752177571683,0.33635529,113450.0,113440.0,0.27253095]
[1752177572076,0.87332009,113450.0,113440.0,0.09635065]
[1752177572276,0.87332009,113450.0,113440.0,0.27253095]
[1752177572882,0.87332009,113450.0,113440.0,0.19992095]
[1752177573082,0.90572009,113450.0,113440.0,0.02374065]
[1752177573481,0.01654,113440.0,113420.0,0.30141327]
[1752177573676,0.48101109,113430.0,113420.0,0.28601185]
[1752177573878,0.48101109,113430.0,113420.0,0.31831185]
[1752177573879,0.48165109,113430.0,113420.0,0.31831185]
[1752177574077,0.51245109,113430.0,113420.0,0.31831185]
[1752177574673,0.51245109,113430.0,113420.0,0.31931185]
[1752177575077,0.51245109,113430.0,113420.0,0.35501327]
[1752177575285,0.51245109,113430.0,113420.0,0.32331185]
[1752177576086,1.12553109,113430.0,113420.0,0.32331185]
[1752177576385,1.12553109,113430.0,113420.0,0.28025905]
[1752177577080,1.12553109,113430.0,113420.0,0.10405065]
[1752177577295,1.42179638,113430.0,113420.0,0.28026195]
[1752177577478,0.80871638,113430.0,113420.0,0.10405065]
[1752177577789,0.80871638,113430.0,113420.0,0.007]
[1752177577790,1.78239638,113430.0,113420.0,0.007]
[1752177577986,1.78239638,113430.0,113420.0,0.03074065]
[1752177578384,1.78239638,113430.0,113420.0,0.007]
[1752177579879,1.78227638,113430.0,113420.0,0.002]
[1752177580086,1.78227638,113430.0,113420.0,0.004]
[1752177580487,1.79121802,113430.0,113420.0,0.004]
[1752177581381,1.79125802,113430.0,113420.0,0.004]
[1752177583384,1.17845802,113430.0,113420.0,0.004]
[1752177583588,1.79109802,113430.0,113420.0,0.004]
[1752177585195,1.17845802,113430.0,113420.0,0.004]
[1752177585396,1.26220744,113430.0,113420.0,0.004]
[1752177585584,1.79073802,113430.0,113420.0,0.004]
[1752177587187,0.2159069,113410.0,113400.0,0.00176359]
[1752177587490,1.45357219,113410.0,113400.0,0.00176359]
[1752177587680,1.51771219,113410.0,113400.0,0.00176359]
[1752177588491,1.51771219,113410.0,113400.0,0.00476359]
[1752177588790,1.78197748,113410.0,113400.0,0.00476359]
[1752177588993,2.14277748,113410.0,113400.0,0.00476359]
[1752177589286,2.14277748,113410.0,113400.0,0.00876359]
[1752177589489,2.14325748,113410.0,113400.0,0.00876359]
[1752177589690,1.87899219,113410.0,113400.0,0.00876359]
[1752177590284,2.14325748,113410.0,113400.0,0.00876359]
[1752177591197,2.21376487,113410.0,113400.0,0.00876359]
[1752177591489,0.2159224,113400.0,113390.0,0.00276375]
[1752177591790,1.17015298,113400.0,113390.0,0.00276375]
[1752177592088,1.17079298,113400.0,113390.0,0.00276375]
[1752177592683,1.17079298,113400.0,113390.0,0.00776375]
[1752177593086,0.2600252,113380.0,113370.0,0.04001]
[1752177593291,0.84101879,113380.0,113370.0,0.2162991]
[1752177593595,0.01586,113380.0,113370.0,0.6373991]
[1752177593789,0.1914935,113380.0,113370.0,0.6373991]
[1752177594091,0.01522,113380.0,113370.0,0.6373991]
[1752177594290,0.01522,113380.0,113370.0,0.6433991]
[1752177594488,0.1914935,113380.0,113370.0,0.6433991]
[1752177594681,0.01522,113380.0,113370.0,0.6483991]
[1752177594879,0.1914935,113380.0,113370.0,0.6483991]
[1752177595083,0.01522,113380.0,113370.0,0.91266439]
[1752177595486,0.01522,113380.0,113370.0,0.6483991]
[1752177595690,0.48021879,113380.0,113370.0,0.6483991]
[1752177596296,0.48021879,113380.0,113370.0,0.08121]
[1752177596490,0.48085879,113380.0,113370.0,0.257499]
[1752177596691,0.51115879,113380.0,113370.0,0.257499]
[1752177596886,0.51115879,113380.0,113370.0,0.08121]
[1752177597295,0.87195879,113380.0,113370.0,0.011]
[1752177597494,0.90455879,113380.0,113370.0,0.011]
[1752177597793,0.90455879,113380.0,113370.0,0.211659]
[1752177597995,0.90455879,113380.0,113370.0,0.227299]
[1752177598197,0.90455879,113380.0,113370.0,0.257899]
[1752177598400,1.15703879,113380.0,113370.0,0.257899]
[1752177598602,0.2165935,113380.0,113370.0,0.257899]
[1752177598796,0.1914935,113380.0,113370.0,0.91346429]
[1752177599399,0.1914935,113380.0,113370.0,0.649199]
[1752177599699,0.48021879,113380.0,113370.0,0.649199]
[1752177599896,0.01522,113380.0,113370.0,0.91346429]
[1752177600195,1.12419879,113380.0,113370.0,0.011]
[1752177600395,1.48563879,113380.0,113370.0,0.011]
[1752177600600,1.51613879,113380.0,113370.0,0.011]
[1752177600802,1.66553228,113380.0,113370.0,0.011]
[1752177601006,1.66553228,113380.0,113370.0,0.005]
[1752177601896,1.67430075,113380.0,113370.0,0.005]
[1752177602807,1.06082075,113380.0,113370.0,0.005]
[1752177603801,1.06082075,113380.0,113370.0,0.181289]
[1752177603998,1.05205228,113380.0,113370.0,0.221299]
[1752177604294,1.05205228,113380.0,113370.0,0.07741]
[1752177604502,1.05205228,113380.0,113370.0,0.005]
[1752177604898,1.05205228,113380.0,113370.0,0.04501]
[1752177605404,1.05205228,113380.0,113370.0,0.02937]
[1752177605596,1.05205228,113380.0,113370.0,0.005]
[1752177616715,0.216699,113370.0,113360.0,0.00176421]
[1752177617007,0.2167146,113360.0,113350.0,0.00276437]
[1752177617311,0.99117338,113360.0,113350.0,0.04079437]
[1752177617616,0.1926646,113360.0,113350.0,0.64281447]
[1752177617912,0.1920246,113360.0,113350.0,0.64281447]
[1752177619114,0.1763046,113360.0,113350.0,0.64281447]
[1752177619907,0.1763046,113360.0,113350.0,0.64781447]
[1752177620112,0.1763046,113360.0,113350.0,0.65281447]
[1752177626816,0.1920246,113360.0,113350.0,0.65281447]
[1752177627318,0.60568338,113360.0,113350.0,0.65281447]
[1752177628017,0.63037338,113360.0,113350.0,0.29201427]
[1752177628218,0.63101338,113360.0,113350.0,0.29201427]
[1752177628913,0.63101338,113360.0,113350.0,0.08369437]
[1752177629120,0.99181338,113360.0,113350.0,0.01276437]
[1752177629315,1.05551338,113360.0,113350.0,0.01276437]
[1752177630309,1.05551338,113360.0,113350.0,0.01176437]
[1752177630712,1.05551338,113360.0,113350.0,0.00776437]
[1752177631221,1.05551338,113360.0,113350.0,0.00576437]
[1752177631722,1.10283811,113360.0,113350.0,0.00476437]
[1752177631916,1.10483811,113360.0,113350.0,0.00476437]
[1752177632322,1.71843811,113360.0,113350.0,0.00476437]
[1752177634610,1.67111338,113360.0,113350.0,0.00476437]
[1752177634816,1.67111338,113360.0,113350.0,0.00276437]
[1752177635322,1.67291338,113360.0,113350.0,0.00276437]
[1752177636321,1.06151338,113360.0,113350.0,0.00276437]
[1752177636523,1.67275338,113360.0,113350.0,0.02563437]
[1752177636826,1.67275338,113360.0,113350.0,0.00276437]
[1752177637323,1.67475338,113360.0,113350.0,0.00276437]
[1752177637720,1.06351338,113360.0,113350.0,0.00276437]
[1752177637923,0.6498546,113360.0,113350.0,0.21711427]
[1752177638123,1.1972346,113360.0,113350.0,0.24741427]
[1752177638425,1.1730646,113360.0,113350.0,0.27761427]
[1752177638627,1.61141338,113360.0,113350.0,0.27761427]
[1752177638930,1.61141338,113360.0,113350.0,0.10129437]
[1752177639228,1.64351338,113360.0,113350.0,0.10129437]
[1752177639922,1.63751338,113360.0,113350.0,0.10129437]
[1752177640226,1.64251338,113360.0,113350.0,0.10129437]
[1752177640526,1.64251338,113360.0,113350.0,0.27761427]
[1752177640527,1.64651338,113360.0,113350.0,0.27761427]
[1752177640829,1.2328546,113360.0,113350.0,0.27761427]
[1752177641120,0.6172546,113360.0,113350.0,0.27761427]
[1752177641325,1.64563338,113360.0,113350.0,0.27761427]
[1752177643034,1.64563338,113360.0,113350.0,0.02576437]
[1752177643236,1.67693338,113360.0,113350.0,0.04102437]
[1752177643726,1.67693338,113360.0,113350.0,0.07382437]
[1752177643933,1.00181338,113360.0,113350.0,0.25014427]
[1752177644133,1.61361338,113360.0,113350.0,0.28124427]
[1752177645231,1.61061338,113360.0,113350.0,0.28124427]
[1752177645535,1.61353338,113360.0,113350.0,0.30499779]
[1752177645736,1.60853338,113360.0,113350.0,0.30499779]
[1752177646132,0.97212338,113360.0,113350.0,0.30499779]
[1752177646337,0.00564,113360.0,113350.0,0.66579779]
[1752177646636,0.1813043,113360.0,113350.0,0.66579779]
[1752177647727,0.004,113360.0,113350.0,1.92288489]
[1752177648736,0.32499,113370.0,113360.0,0.1915644]
[1752177649036,0.32499,113370.0,113360.0,0.32131744]
[1752177650336,0.32599,113370.0,113360.0,0.32131744]
[1752177650728,0.34903,113370.0,113360.0,0.32131744]
[1752177650932,0.76332878,113370.0,113360.0,0.32131744]
[1752177651440,0.34967,113370.0,113360.0,0.32131744]
[1752177652642,0.1944104,113370.0,113360.0,0.35401886]
[1752177652830,0.1937704,113370.0,113360.0,0.35401886]
[1752177653944,0.1773004,113370.0,113360.0,0.35401886]
[1752177654146,0.1772888,113370.0,113360.0,0.35401886]
[1752177654339,0.001,113370.0,113360.0,0.71481886]
[1752177654831,0.1772888,113370.0,113360.0,0.71481886]
[1752177655242,0.001,113370.0,113360.0,0.72366223]
[1752177655442,0.1937588,113370.0,113360.0,0.71481886]
[1752177655742,0.1937588,113370.0,113360.0,1.32601886]
[1752177655946,0.60741758,113370.0,113360.0,1.32601886]
[1752177657035,0.1937588,113370.0,113360.0,1.32601886]
[1752177657234,0.60741758,113370.0,113360.0,1.29431744]
[1752177657840,0.60741758,113370.0,113360.0,1.32601886]
[1752177658043,0.60805758,113370.0,113360.0,1.32601886]
[1752177658341,0.60805758,113370.0,113360.0,1.29431744]
[1752177658535,0.1943988,113370.0,113360.0,1.29431744]
[1752177658738,0.1937588,113370.0,113360.0,1.29431744]
[1752177659042,0.1937588,113370.0,113360.0,1.29531744]
[1752177659243,0.1927588,113370.0,113360.0,1.29631744]
[1752177659846,0.01647,113370.0,113360.0,1.29631744]
[1752177660148,0.6416989,113380.0,113370.0,0.2145488]
[1752177660446,1.71291328,113390.0,113380.0,0.2145332]
[1752177660648,1.71399328,113390.0,113380.0,0.2477332]
[1752177660945,1.56494934,113390.0,113380.0,0.2477332]
[1752177662046,1.56694934,113390.0,113380.0,0.2477332]
[1752177662548,1.56694934,113390.0,113380.0,0.07146]
[1752177662751,0.7072845,113390.0,113380.0,0.2477332]
[1752177663050,1.73222805,113390.0,113380.0,0.2467332]
[1752177663748,1.76392805,113390.0,113380.0,0.03726]
[1752177663956,1.76624805,113390.0,113380.0,0.03826]
[1752177665051,1.76624805,113390.0,113380.0,0.2145333]
[1752177665354,1.76624805,113390.0,113380.0,0.03826]
[1752177667253,1.76608805,113390.0,113380.0,0.03826]
[1752177670954,1.76608805,113390.0,113380.0,0.2145333]
[1752177671155,1.76608805,113390.0,113380.0,0.03826]
[1752177671655,1.15444805,113390.0,113380.0,0.2145333]
[1752177671955,1.76588805,113390.0,113380.0,0.03826]
[1752177673342,1.15444805,113390.0,113380.0,0.2145332]
[1752177673542,1.14571315,113390.0,113380.0,0.2145332]
[1752177673745,0.2516077,113390.0,113380.0,0.25506661]
[1752177673950,0.2516077,113390.0,113380.0,0.31606661]
[1752177673951,0.2509677,113390.0,113380.0,0.31606661]
[1752177675250,0.02047,113390.0,113380.0,2.31349016]
[1752177675456,0.003,113390.0,113380.0,2.34519158]
[1752177676159,0.002,113390.0,113380.0,2.3214369]
[1752177676358,0.01606,113400.0,113390.0,0.2139977]
[1752177676657,0.1923022,113400.0,113390.0,0.71673144]
[1752177677257,0.1923022,113400.0,113390.0,0.30326789]
[1752177677446,0.1943022,113400.0,113390.0,0.30326789]
[1752177677650,0.1943022,113400.0,113390.0,0.37248428]
[1752177678164,0.1943022,113400.0,113390.0,0.73328428]
[1752177678658,0.1953022,113400.0,113390.0,0.74199692]
[1752177679357,0.1943022,113400.0,113390.0,0.74199692]
[1752177679563,0.1923022,113400.0,113390.0,0.77669834]
[1752177683360,0.1923022,113400.0,113390.0,0.74499692]
[1752177684157,0.1923022,113400.0,113390.0,0.73628428]
[1752177684463,0.48163348,113400.0,113390.0,0.73628428]
[1752177685460,1.10695476,113400.0,113390.0,0.02677019]
[1752177685661,1.77921476,113400.0,113390.0,0.003]
[1752177686257,1.2502122,113400.0,113390.0,0.2189977]
[1752177686464,1.2502122,113400.0,113390.0,0.2497977]
[1752177686657,0.87377348,113400.0,113390.0,0.3192327]
[1752177686864,0.87377348,113400.0,113390.0,0.3514327]
[1752177687055,0.87377348,113400.0,113390.0,0.3504327]
[1752177687659,0.6092522,113400.0,113390.0,0.3504327]
[1752177687866,0.87377348,113400.0,113390.0,0.3504327]
[1752177689152,0.87377348,113400.0,113390.0,0.3494327]
[1752177690661,0.33673128,113400.0,113390.0,0.3494327]
[1752177690866,0.51297338,113400.0,113390.0,0.3494327]
[1752177692668,0.1929421,113400.0,113390.0,0.7102327]
[1752177692868,0.1923021,113400.0,113390.0,0.99849136]
[1752177693065,0.1923021,113400.0,113390.0,0.97475398]
[1752177693969,0.1923021,113400.0,113390.0,0.99849136]
[1752177694273,0.1923021,113400.0,113390.0,0.73397008]
[1752177695667,0.1923021,113400.0,113390.0,0.7656715]
[1752177696376,0.45682338,113400.0,113390.0,0.7656715]
[1752177696560,0.45782338,113400.0,113390.0,0.7646715]
[1752177696764,0.45882338,113400.0,113390.0,0.7646715]
[1752177697568,0.45782338,113400.0,113390.0,0.7646715]
[1752177697773,0.45882338,113400.0,113390.0,0.7646715]
[1752177698968,0.51443338,113400.0,113390.0,0.4038715]
[1752177699165,1.13975466,113400.0,113390.0,0.06347738]
[1752177699370,1.17329466,113400.0,113390.0,0.06347738]
[1752177699768,0.1928677,113390.0,113380.0,0.08091611]
[1752177699967,0.90500898,113390.0,113380.0,0.08091611]
[1752177700270,0.90564898,113390.0,113380.0,0.08091611]
[1752177700467,0.90564898,113390.0,113380.0,0.25718931]
[1752177702677,0.90564898,113390.0,113380.0,0.25818931]
[1752177703175,0.90564898,113390.0,113380.0,0.08191611]
[1752177703574,0.90564898,113390.0,113380.0,0.25818931]
[1752177708188,1.51480898,113390.0,113380.0,0.25818931]
[1752177708781,1.51480898,113390.0,113380.0,0.23445193]
[1752177709281,1.2502877,113390.0,113380.0,0.23445193]
[1752177709580,0.00064,113390.0,113380.0,0.49897321]
[1752177709780,0.7299869,113410.0,113400.0,0.2156422]
[1752177709983,1.3396669,113410.0,113400.0,0.2156422]
[1752177710284,1.60418818,113410.0,113400.0,0.2156422]
[1752177711187,1.60718818,113410.0,113400.0,0.2156422]
[1752177712086,0.99814818,113410.0,113400.0,0.2156422]
[1752177712292,1.60726818,113410.0,113400.0,0.2156422]
[1752177712588,1.3457469,113410.0,113400.0,0.2156422]
[1752177713101,1.61026818,113410.0,113400.0,0.0394]
[1752177714207,1.61026818,113410.0,113400.0,0.2156421]
[1752177715109,1.61026818,113410.0,113400.0,0.0394]
[1752177716406,1.61026818,113410.0,113400.0,0.2156422]
[1752177717213,1.61026818,113410.0,113400.0,0.0394]
[1752177717517,1.61026818,113410.0,113400.0,0.02353]
[1752177720011,1.62888399,113410.0,113400.0,0.02353]
[1752177720315,1.62888399,113410.0,113400.0,0.1997722]
[1752177720503,1.62888399,113410.0,113400.0,0.2156422]
[1752177721014,1.62588399,113410.0,113400.0,0.2156422]
[1752177721219,1.62888399,113410.0,113400.0,0.2156422]
[1752177721508,1.62888399,113410.0,113400.0,0.0394]
[1752177721712,1.62388399,113410.0,113400.0,0.0394]
[1752177721915,1.62688399,113410.0,113400.0,0.0394]
[1752177722508,1.62688399,113410.0,113400.0,0.02353]
[1752177722713,1.62488399,113410.0,113400.0,0.1997722]
[1752177722913,1.26408399,113410.0,113400.0,0.1997722]
[1752177723912,1.36036271,113410.0,113400.0,0.2156422]
[1752177724116,1.62488399,113410.0,113400.0,0.2156422]
[1752177724517,1.62488399,113410.0,113400.0,0.2465422]
[1752177727421,1.01576399,113410.0,113400.0,0.2465422]
[1752177727919,1.62388399,113410.0,113400.0,0.2465422]
[1752177730222,1.67120872,113410.0,113400.0,0.2465422]
[1752177730823,1.67120872,113410.0,113400.0,0.0703]
[1752177731120,1.67120872,113410.0,113400.0,0.2465422]
[1752177731423,1.67120872,113410.0,113400.0,0.05443]
[1752177731624,1.67120872,113410.0,113400.0,0.07297]
[1752177733027,1.67120872,113410.0,113400.0,0.2492121]
[1752177734226,1.40668744,113410.0,113400.0,0.2492121]
[1752177734527,1.67120872,113410.0,113400.0,0.2492121]
[1752177735030,1.67120872,113410.0,113400.0,0.2652221]
[1752177735730,0.06298581,113410.0,113400.0,0.52974338]
[1752177735925,0.21545241,113410.0,113400.0,0.56873824]
[1752177736429,0.24020241,113410.0,113400.0,0.56873824]
[1752177736730,0.24020241,113410.0,113400.0,0.2955221]
[1752177737832,0.24020241,113410.0,113400.0,0.30422491]
[1752177740627,0.24020241,113410.0,113400.0,0.2955221]
[1752177741033,0.23920241,113410.0,113400.0,0.2955221]
[1752177741930,0.23820241,113410.0,113400.0,0.2955221]
[1752177742729,0.23820241,113410.0,113400.0,0.56004338]
[1752177743034,0.23820241,113410.0,113400.0,0.56879507]
[1752177744626,0.23920241,113410.0,113400.0,0.56879507]
[1752177744823,0.24020241,113410.0,113400.0,0.56879507]
[1752177745330,0.02261581,113410.0,113400.0,1.21056349]
[1752177745525,0.0168516,113410.0,113400.0,1.31056349]
[1752177745834,0.002,113410.0,113400.0,1.31056349]
[1752177746631,0.001,113410.0,113400.0,1.31056349]
[1752177748330,0.3197532,113430.0,113420.0,0.1762111]
[1752177748537,0.3358232,113430.0,113420.0,0.2153811]
[1752177748740,0.3364632,113430.0,113420.0,0.2453811]
[1752177749038,0.3358232,113430.0,113420.0,0.2453811]
[1752177749232,0.3358232,113430.0,113420.0,0.26236382]
[1752177749431,0.3388232,113430.0,113420.0,0.26236382]
[1752177749632,0.3418232,113430.0,113420.0,0.26236382]
[1752177749929,0.2977729,113430.0,113420.0,0.26236382]
[1752177750134,0.2971329,113430.0,113420.0,0.26236382]
[1752177751337,0.56165418,113430.0,113420.0,0.26236382]
[1752177751638,0.02207,113430.0,113420.0,0.5268851]
[1752177751933,0.02143,113430.0,113420.0,0.5598851]
[1752177752535,0.02143,113430.0,113420.0,0.5784251]
[1752177752934,0.006,113430.0,113420.0,0.9392251]
[1752177753826,0.006,113430.0,113420.0,1.11555309]
[1752177754030,0.006,113430.0,113420.0,1.38007437]
[1752177754227,0.006,113430.0,113420.0,1.11555309]
[1752177755039,0.003,113430.0,113420.0,1.11555309]
[1752177755241,0.003,113430.0,113420.0,1.11755309]
[1752177755840,0.01743,113440.0,113430.0,0.1922055]
[1752177756041,0.01743,113440.0,113430.0,2.11882678]
[1752177757733,0.03689179,113440.0,113430.0,2.11882678]
[1752177758443,0.01743,113440.0,113430.0,2.11882678]
[1752177759042,0.01743,113440.0,113430.0,1.8543055]
[1752177759246,0.19361,113440.0,113430.0,1.8543055]
[1752177759644,0.01743,113440.0,113430.0,2.11882678]
[1752177760343,0.002,113440.0,113430.0,2.11882678]
[1752177760543,0.02145553,113440.0,113430.0,2.11882678]
[1752177761338,0.002,113440.0,113430.0,2.11882678]
[1752177761537,0.002,113440.0,113430.0,1.8543055]
[1752177761843,0.002,113440.0,113430.0,2.11882678]
[1752177762839,0.0172,113440.0,113430.0,1.8543055]
[1752177763048,0.0512,113440.0,113430.0,2.11882678]
[1752177763347,0.0512,113440.0,113430.0,2.14251373]
[1752177764046,0.0532,113440.0,113430.0,2.14251373]
[1752177764744,0.0522,113440.0,113430.0,2.14251373]
[1752177764944,0.22638,113440.0,113430.0,1.84709245]
[1752177765243,0.22638,113440.0,113430.0,2.11161373]
[1752177765943,0.51556128,113440.0,113430.0,1.23921245]
[1752177766145,0.51620128,113440.0,113430.0,1.23921245]
[1752177766339,0.54900128,113440.0,113430.0,0.84601245]
[1752177767143,0.90980128,113440.0,113430.0,0.84601245]
[1752177767334,0.90980128,113440.0,113430.0,0.03917]
[1752177767533,0.1913955,113430.0,113420.0,0.23123022]
[1752177767735,0.90367678,113430.0,113420.0,0.05503272]
[1752177767943,0.90431678,113430.0,113420.0,0.05503272]
[1752177768142,0.90431678,113430.0,113420.0,0.07358272]
[1752177768341,1.51323678,113430.0,113420.0,0.05809272]
[1752177768539,1.51523678,113430.0,113420.0,0.04111]
[1752177769046,1.77975806,113430.0,113420.0,0.01855]
[1752177769443,1.51623678,113430.0,113420.0,0.04111]
[1752177769950,1.51423678,113430.0,113420.0,0.04111]
[1752177770150,1.51623678,113430.0,113420.0,0.04111]
[1752177770749,1.52495108,113430.0,113420.0,0.04111]
[1752177774049,1.52495108,113430.0,113420.0,0.2173211]
[1752177774251,1.51623678,113430.0,113420.0,0.2173211]
[1752177775952,1.51623678,113430.0,113420.0,0.2328111]
[1752177776959,1.2517155,113430.0,113420.0,0.0566]
[1752177777260,1.51623678,113430.0,113420.0,0.0566]
[1752177777558,1.52485801,113430.0,113420.0,0.0566]
[1752177778060,1.26033673,113430.0,113420.0,0.0566]
[1752177778260,1.52485801,113430.0,113420.0,0.0566]
[1752177779363,1.52485801,113430.0,113420.0,0.232811]
[1752177779764,1.52485801,113430.0,113420.0,0.0566]
[1752177780264,1.52485801,113430.0,113420.0,0.232811]
[1752177781164,1.52485801,113430.0,113420.0,0.0566]
[1752177782074,1.52485801,113430.0,113420.0,0.04111]
[1752177782371,1.52485801,113430.0,113420.0,0.01855]
[1752177782663,1.26033673,113430.0,113420.0,0.01855]
[1752177782868,1.52485801,113430.0,113420.0,0.01855]
[1752177783570,1.52485801,113430.0,113420.0,0.04111]
[1752177784170,1.26033673,113430.0,113420.0,0.04111]
[1752177784470,1.52485801,113430.0,113420.0,0.04111]
[1752177787462,1.26033673,113430.0,113420.0,0.04111]
[1752177787662,1.52485801,113430.0,113420.0,0.04111]
[1752177791073,1.52485801,113430.0,113420.0,0.01855]
[1752177791569,0.91593801,113430.0,113420.0,0.01855]
[1752177791875,1.52385801,113430.0,113420.0,0.01855]
[1752177793373,1.54259651,113430.0,113420.0,0.01855]
[1752177802973,1.54252729,113430.0,113420.0,0.01855]
[1752177803677,0.1762265,113410.0,113400.0,0.02282]
[1752177803981,0.1762265,113410.0,113400.0,0.51100416]
[1752177803982,1.46788706,113410.0,113400.0,0.51100416]
[1752177804279,1.46788706,113410.0,113400.0,0.54390416]
[1752177804680,0.86000706,113410.0,113400.0,0.54390416]
[1752177804881,1.46788706,113410.0,113400.0,0.54490416]
[1752177805085,1.46788706,113410.0,113400.0,0.2804521]
[1752177805286,1.46852706,113410.0,113400.0,0.54490416]
[1752177805577,1.46852706,113410.0,113400.0,0.2804521]
[1752177805782,1.46852706,113410.0,113400.0,0.54490416]
[1752177805984,1.46852706,113410.0,113400.0,0.2814521]
[1752177806282,1.46852706,113410.0,113400.0,0.54590416]
[1752177806888,1.204075,113410.0,113400.0,0.2814521]
[1752177807078,1.46857572,113410.0,113400.0,0.2814521]
[1752177807386,1.204075,113410.0,113400.0,0.2814521]
[1752177809388,1.204075,113410.0,113400.0,0.10421]
[1752177810385,1.235775,113410.0,113400.0,0.10421]
[1752177810587,1.50027572,113410.0,113400.0,0.10421]
[1752177811791,1.50027572,113410.0,113400.0,0.0331]
[1752177811990,1.50027572,113410.0,113400.0,1e-07]
[1752177811991,1.53207572,113410.0,113400.0,1e-07]
[1752177812386,0.1928021,113400.0,113390.0,0.05452]
[1752177812592,0.89327132,113400.0,113390.0,0.05452]
[1752177812890,0.89391132,113400.0,113390.0,0.05452]
[1752177814091,1.2372906,113400.0,113390.0,0.2481676]
[1752177814290,1.2372906,113400.0,113390.0,0.2795676]
[1752177815699,1.2372906,113400.0,113390.0,0.10331]
[1752177816094,1.50179132,113400.0,113390.0,0.10331]
[1752177816585,1.50179132,113400.0,113390.0,0.07191]
[1752177816790,1.50179132,113400.0,113390.0,0.002]
[1752177817096,1.80680323,113400.0,113390.0,0.002]
[1752177817998,1.87631543,113400.0,113390.0,0.002]
[1752177818594,1.80680323,113400.0,113390.0,0.002]
[1752177819799,1.54230251,113400.0,113390.0,0.002]
[1752177822898,1.27780179,113400.0,113390.0,0.1782576]
[1752177823099,1.54230251,113400.0,113390.0,0.1782576]
[1752177823490,1.61345137,113400.0,113390.0,0.1782576]
[1752177823991,1.60444018,113400.0,113390.0,0.2027776]
[1752177824291,1.60444018,113400.0,113390.0,0.2351776]
[1752177824794,0.99656018,113400.0,113390.0,0.2351776]
[1752177825005,1.60444018,113400.0,113390.0,0.2351776]
[1752177825495,0.3967385,113400.0,113390.0,0.51597832]
[1752177825701,0.3967385,113400.0,113390.0,0.54787832]
[1752177826187,0.5729805,113400.0,113390.0,0.54787832]
[1752177828394,0.0359385,113400.0,113390.0,0.90867832]
[1752177828600,0.2115406,113400.0,113390.0,0.90867832]
[1752177829500,0.2115406,113400.0,113390.0,0.6441776]
[1752177829701,0.2115406,113400.0,113390.0,0.90867832]
[1752177833401,0.2115406,113400.0,113390.0,0.90667832]
[1752177833602,0.2125406,113400.0,113390.0,0.90667832]
[1752177835200,0.86042132,113400.0,113390.0,0.10512]
[1752177835406,0.92236132,113400.0,113390.0,0.04082]
[1752177836497,0.92236132,113400.0,113390.0,0.2170777]
[1752177836700,0.92236132,113400.0,113390.0,0.04082]
[1752177838208,0.92236132,113400.0,113390.0,0.2170776]
[1752177840311,0.6578606,113400.0,113390.0,0.2170776]
[1752177840509,0.6578606,113400.0,113390.0,0.2492776]
[1752177841712,0.6271606,113400.0,113390.0,0.2492776]
[1752177842812,0.89466132,113400.0,113390.0,0.2492776]
[1752177843015,0.89766132,113400.0,113390.0,0.2492776]
[1752177848222,0.89466132,113400.0,113390.0,0.2492776]
[1752177848423,0.92926132,113400.0,113390.0,0.2492776]
[1752177850326,0.92626132,113400.0,113390.0,0.2492776]
[1752177850526,0.92926132,113400.0,113390.0,0.2492776]
[1752177851524,0.92626132,113400.0,113390.0,0.2492776]
[1752177851726,0.92326132,113400.0,113390.0,0.2492776]
[1752177852022,0.92726132,113400.0,113390.0,0.2492776]
[1752177853323,0.90852282,113400.0,113390.0,0.28099149]
[1752177853723,0.90352282,113400.0,113390.0,0.28099149]
[1752177854025,0.90352282,113400.0,113390.0,0.90629221]
[1752177854026,0.07238,113400.0,113390.0,0.90629221]
[1752177854225,0.2479821,113400.0,113390.0,0.54549221]
[1752177854525,0.2459821,113400.0,113390.0,0.54549221]
[1752177854823,0.2781821,113400.0,113390.0,0.54549221]
[1752177856227,0.29645843,113400.0,113390.0,0.51377832]
[1752177858330,0.29645843,113400.0,113390.0,0.51477832]
[1752177862631,0.29645843,113400.0,113390.0,0.2502776]
[1752177867138,0.29645843,113400.0,113390.0,0.51477832]
[1752177868942,0.29645843,113400.0,113390.0,0.2502776]